Cogmind - Beta 14 @@@ ROGUE MODE // 2024.08.17 @ 12:08:57 Player: Olafz Result: Destroyed by G-47 Trooper with Particle Gun Performance ------------- Evolutions (1) 500 Regions Visited (6) 1200 Robots Destroyed (29) 145 Value Destroyed (779) 779 Prototype IDs (0) 0 Alien Tech Used (0) 0 Bonus (0) 0 TOTAL SCORE: 2624 Bonus ------- None Cogmind --------- Core Integrity 0/400 Matter 257/300 Energy 97/265 System Corruption 25% Temperature Danger (488) Movement Treading (160) Location -8/Mines Parts ------- > --- POWER (1) -------- Improved Ion Engine > --- PROPULSION (2) --- Improved Treads Improved Treads > --- UTILITY (4) ------ Medium Storage Unit Sensor Array > --- WEAPON (2) ------- Particle Gun > --- INVENTORY (10) --- Aluminum Leg Experimental Sensor Array Shotgun Datajack Katana Peak State ------------ > --- POWER ------------ Light Ion Engine > --- PROPULSION ------- Aluminum Leg Improved Aluminum Leg > --- UTILITY ---------- Medium Storage Unit Sensor Array Core Shielding > --- WEAPON ----------- Heavy Laser Shotgun > --- INVENTORY -------- Improved Ion Engine Improved Treads Improved Treads Experimental Sensor Array Heavy EM Pulse Gun Particle Gun Datajack Katana [Rating: 15] Favorites ----------- Power Light Ion Engine Engine Light Ion Engine Power Core Light Nuclear Core Propulsion Light Treads Treads Light Treads Leg Aluminum Leg Hover Unit Hover Unit Utility Small Storage Unit Device Structural Scanner Storage Small Storage Unit Processor Signal Interpreter Protection Core Shielding Weapon Light Assault Rifle Energy Gun Particle Gun Ballistic Gun Light Assault Rifle Launcher Grenade Launcher Build | -11 -10 -10 -9 -9 -9 -8 ------- Run | Yrd Mat Min Mat Min Exi Min Slots Evolved 2 | . . . 2 . . . Power . | . . . . . . . Propulsion . | . . . . . . . Utility 2 | . . . 2 . . . Weapon . | . . . . . . . Parts Attached 37 | 6 1 1 8 11 . 10 Power 6 | 1 . . 2 1 . 2 Engine 5 | 1 . . 1 1 . 2 Core 1 | . . . 1 . . . Reactor . | . . . . . . . Propulsion 10 | 2 . . 1 3 . 4 Treads 4 | 2 . . . . . 2 Leg 5 | . . . . 3 . 2 Wheel . | . . . . . . . Hover 1 | . . . 1 . . . Flight . | . . . . . . . Utility 8 | 1 1 . 3 3 . . Device 3 | . 1 . 1 1 . . Storage 2 | 1 . . . 1 . . Processor 1 | . . . 1 . . . Hackware . | . . . . . . . Protection 2 | . . . 1 1 . . Artifact . | . . . . . . . Weapon 13 | 2 . 1 2 4 . 4 Energy Gun 6 | . . . 1 1 . 4 Energy Cannon . | . . . . . . . Ballistic Gun 6 | 2 . . 1 3 . . Ballistic Cannon . | . . . . . . . Launcher 1 | . . 1 . . . . Special Weapon . | . . . . . . . Impact Weapon . | . . . . . . . Slashing Weapon . | . . . . . . . Piercing Weapon . | . . . . . . . Special Melee Weapon . | . . . . . . . Unidentified Prototypes . | . . . . . . . Corrupted Parts 1 | . . . 1 . . . System Corruption 10 | . . . 10 . . . Parts Lost 21 | . . 1 6 7 . 7 Power 4 | . . . 1 1 . 2 Propulsion 6 | . . . 2 2 . 2 Utility 4 | . . . 1 3 . . Weapon 7 | . . 1 2 1 . 3 Highest Loss Streak 6 | . . 1 4 4 . 6 To Critical Strikes 1 | . . . . 1 . . Average Slot Usage (%) 87 | . 95 96 77 86 88 83 Engine 9 | . 14 14 8 4 11 11 Core 2 | . . . 1 5 . . Treads 10 | . 28 28 8 . . 1 Leg 9 | . . . . 19 22 19 Device 10 | . 10 14 12 7 11 11 Storage 11 | . 14 14 11 11 11 11 Processor 3 | . . . 10 5 . . Protection 4 | . . . 2 10 11 8 Energy Gun 5 | . . . 4 5 11 19 Ballistic Gun 14 | . 28 18 11 16 11 1 Launcher 2 | . . 6 6 . . . Peak Build Rating 15 | 6 7 7 11 14 13 15 Average Rating 9 | 4 6 6 8 11 13 13 On Entrance 8 | . 6 7 7 11 13 13 Naked Turns . | . . . . . . . Heaviest Build 25 | 11 12 14 25 23 23 25 Greatest Support 40 | 40 40 40 40 23 23 23 Greatest Overweight (x) 4 | . . . 3 4 . 1 Average Overweight (x) . | . . . . . . . Largest Inventory Capacity 10 | 8 8 8 8 10 10 10 Average Capacity 8 | 6 8 8 8 8 10 10 Most Carried 10 | 3 3 4 7 10 8 10 Average Carried 5 | 1 2 3 5 6 8 9 Final Capacity 10 | 8 8 8 8 10 10 10 Final Carried 8 | 2 3 4 5 8 8 5 Class Distribution -------------------- 59% | Mutant 40% | Scavenger-Mutant Dominant Class ---------------- Mutant | -10/Materials Mutant | -10/Mines Mutant | -9/Materials Scavenger-Mutant | -9/Mines Scavenger-Mutant | -9/Exiles Scavenger-Mutant | -8/Mines Resources | -11 -10 -10 -9 -9 -9 -8 ----------- Run | Yrd Mat Min Mat Min Exi Min Matter Collected 745 | 243 . 66 186 173 . 77 Remotely 72 | . . . 72 . . . Salvage Created 1032 | . . 47 495 291 . 199 Parts 59 | . . 5 29 16 . 9 Haulers Intercepted . | . . . . . . . Recyclers Shooed 1 | . . . 1 . . . Parts Field Recycled . | . . . . . . . Retrieved Matter . | . . . . . . . Parts Self-Destructed . | . . . . . . . Prevented . | . . . . . . . Kills | -11 -10 -10 -9 -9 -9 -8 ------- Run | Yrd Mat Min Mat Min Exi Min Combat Hostiles Destroyed 23 | . . 3 7 6 . 7 Guns 23 | . . 3 7 6 . 7 Classes Destroyed 10 | . . 2 6 2 . . Worker 2 | . . . 1 1 . . Builder 1 | . . . 1 . . . Recycler 2 | . . . 2 . . . Watcher 2 | . . . 2 . . . Swarmer 6 | . . 2 . . . 4 Grunt 13 | . . . 6 4 . 3 Brawler 1 | . . . . 1 . . Duelist 1 | . . . . 1 . . Sentry 1 | . . . 1 . . . Assembled 1 | . . 1 . . . . Best Kill Streak 6 | . . 2 6 2 . 4 Combat Bots Only 4 | . . 2 3 2 . 4 Max Kills in Single Turn 1 | . . 1 1 1 . 1 Gunslinging . | . . . . . . . Exploded . | . . . . . . . Melee . | . . . . . . . Uniques/NPCs Destroyed . | . . . . . . . Combat | -11 -10 -10 -9 -9 -9 -8 -------- Run | Yrd Mat Min Mat Min Exi Min Hostile Shots Fired 267 | . 2 58 63 43 . 101 Missed 80 | . 1 14 23 14 . 28 Damage Taken 2621 | . 11 498 653 491 . 968 Core 494 | . 11 83 135 111 . 154 Absorbed by Shields . | . . . . . . . Redirected to Shielding 25 | . . . . 13 . 12 Core Remaining (%) 81 | 100 . 62 . . . . Volleys Fired 114 | . 2 12 44 28 . 28 Largest 2 | . 2 2 2 2 . 2 Hottest 134 | . 40 40 65 85 . 134 Shots Fired 209 | . 4 24 81 52 . 48 Gun 205 | . 4 24 77 52 . 48 Cannon . | . . . . . . . Launcher 4 | . . . 4 . . . Special . | . . . . . . . Kinetic 119 | . 4 24 44 40 . 7 Thermal 49 | . . . . 11 . 38 Explosive 4 | . . . 4 . . . Electromagnetic 37 | . . . 33 1 . 3 Robot Hit Streak 14 | . 1 3 11 14 . 10 Robot Miss Streak 11 | . 2 3 3 2 . 11 Penetration Max . | . . . . . . . Secondary Targets 4 | . . 1 . 2 . 1 Max Gunslinging Chain 1 | . . 1 . 1 . 1 Shots Hit Robots 129 | . 2 11 55 42 . 19 Core Hits 58 | . . 4 24 15 . 15 Critical Kills 1 | . . 1 . . . . Critical Parts Destroyed 2 | . . . 2 . . . Critical Strikes 4 | . . 1 3 . . . Destroy 3 | . . 1 2 . . . Corrupt 1 | . . . 1 . . . Melee Attacks . | . . . . . . . Impact . | . . . . . . . Slashing . | . . . . . . . Piercing . | . . . . . . . Sneak Attacks . | . . . . . . . Combat Hostiles . | . . . . . . . Follow-up Attacks . | . . . . . . . Damage Inflicted 2015 | . 21 116 1051 437 . 390 Guns 1588 | . 21 116 624 437 . 390 Cannons . | . . . . . . . Explosions 427 | . . . 427 . . . Melee . | . . . . . . . Ramming . | . . . . . . . Kinetic 772 | . 21 116 261 273 . 101 Thermal 641 | . . . 218 151 . 272 Explosive 209 | . . . 209 . . . Electromagnetic 393 | . . . 363 13 . 17 Impact . | . . . . . . . Slashing . | . . . . . . . Piercing . | . . . . . . . Highest Corruption 25 | . . . 10 25 25 25 Average Corruption 19 | . . . 10 17 25 25 Corruption Purged . | . . . . . . . Corruption Blocked . | . . . . . . . Effects 46 | . . . 3 24 2 17 Message Errors 9 | . . . 1 4 1 3 Matter Fused 13 | . . . 1 8 . 4 Heat Flow Errors 6 | . . . . 5 . 1 Energy Discharges 2 | . . . . 1 . 1 Data Loss (minor) 5 | . . . . 2 1 2 Data Loss (major) 1 | . . . . 1 . . Alerts 1 | . . . . 1 . . Weapon Failures 9 | . . . 1 2 . 6 Overload Shots . | . . . . . . . Overflow Damage 57 | . . . 57 . . . Projectiles . | . . . . . . . Explosions 57 | . . . 57 . . . Melee . | . . . . . . . Knockbacks . | . . . . . . . Impact . | . . . . . . . Kinetic . | . . . . . . . Secondary . | . . . . . . . Self-Inflicted Damage 117 | . . . 117 . . . Shots 2 | . . . 2 . . . Rammed . | . . . . . . . Targets Rammed . | . . . . . . . Kicked . | . . . . . . . Crushed . | . . . . . . . Highest Temperature 480 | . . 20 172 277 . 480 Average Temperature 123 | . . 7 67 85 . 201 Received Heat Transfer 936 | . 6 120 255 123 . 432 Effects 4 | . . . . . . 4 Shutdowns 2 | . . . . . . 2 Interference 2 | . . . . . . 2 Siege Activations . | . . . . . . . Robots Corrupted . | . . . . . . . Combat Hostiles . | . . . . . . . Parts Fried 2 | . . . 2 . . . Impact Corruptions . | . . . . . . . Robots Melted . | . . . . . . . Combat Hostiles . | . . . . . . . Parts Melted 1 | . . . . 1 . . Heat Transferred 1112 | . . . 150 370 . 592 Parts Sabotaged . | . . . . . . . Parts Stolen . | . . . . . . . Parts Stripped . | . . . . . . . Power Chain Reactions . | . . . . . . . Alert | -11 -10 -10 -9 -9 -9 -8 ------- Run | Yrd Mat Min Mat Min Exi Min Peak Influence 301 | . 30 81 301 229 . 150 Initial 117 | . . 11 31 117 . . Average 104 | . 10 74 144 154 . 106 Maximum Alert Level 1 | . . . 1 1 . . Low Security (%) 83 | 100 100 100 64 67 . 100 Level 1 16 | . . . 35 32 . . Level 2 . | . . . . . . . Level 3 . | . . . . . . . Level 4 . | . . . . . . . Level 5 . | . . . . . . . High Security . | . . . . . . . Max Security . | . . . . . . . Squads Dispatched 3 | . 1 . 2 . . . Investigation . | . . . . . . . Extermination . | . . . . . . . Reinforcement 3 | . 1 . 2 . . . Assault . | . . . . . . . Garrison . | . . . . . . . Intercept . | . . . . . . . Searches Triggered . | . . . . . . . Construction Impeded 1 | . . . 1 . . . Haulers Reinforced . | . . . . . . . Active Scanning Responses . | . . . . . . . Cargo Convoy Interrupts . | . . . . . . . Stealth | -11 -10 -10 -9 -9 -9 -8 --------- Run | Yrd Mat Min Mat Min Exi Min Distress Signals 2 | . . . 2 . . . Communications Jammed . | . . . . . . . Distress Signals . | . . . . . . . Times Spotted 50 | . 4 18 12 6 . 10 Peak Tracking Total 11 | . 1 11 5 3 . 4 Tactical Retreats 2 | . . 1 . 1 . . Traps | -11 -10 -10 -9 -9 -9 -8 ------- Run | Yrd Mat Min Mat Min Exi Min Traps Triggered . | . . . . . . . Indirectly . | . . . . . . . Trap Hack Attempts . | . . . . . . . Triggered . | . . . . . . . Disarmed . | . . . . . . . Reprogrammed . | . . . . . . . Reused . | . . . . . . . Traps Extracted . | . . . . . . . Installed . | . . . . . . . Triggered . | . . . . . . . Machines | -11 -10 -10 -9 -9 -9 -8 ---------- Run | Yrd Mat Min Mat Min Exi Min Machines Disabled 3 | . . . 3 . . . Max in Single Turn 2 | . . . 2 . . . Machines Repaired . | . . . . . . . Machines Dismantled . | . . . . . . . Machines Sabotaged . | . . . . . . . Overloaded Fab Kills . | . . . . . . . Hacking | -11 -10 -10 -9 -9 -9 -8 --------- Run | Yrd Mat Min Mat Min Exi Min Machines Accessed 1 | . . . 1 . . . Terminals 1 | . . . 1 . . . Fabricators . | . . . . . . . Repair Stations . | . . . . . . . Recycling Units . | . . . . . . . Scanalyzers . | . . . . . . . Garrison Access . | . . . . . . . Total Hacks 2 | . . . 2 . . . Successful . | . . . . . . . Failed 2 | . . . 2 . . . Catastrophic 1 | . . . 1 . . . Database Lockouts . | . . . . . . . Manual 2 | . . . 2 . . . Terminals 2 | . . . 2 . . . Fabricators . | . . . . . . . Repair Stations . | . . . . . . . Recycling Units . | . . . . . . . Scanalyzers . | . . . . . . . Garrison Access . | . . . . . . . Terminal Hacks . | . . . . . . . Fabricator Hacks . | . . . . . . . Repair Station Hacks . | . . . . . . . Recycling Unit Hacks . | . . . . . . . Scanalyzer . | . . . . . . . Garrison Access Hacks . | . . . . . . . Unauthorized Hacks . | . . . . . . . Terminals . | . . . . . . . Fabricators . | . . . . . . . Repair Stations . | . . . . . . . Recycling Units . | . . . . . . . Scanalyzers . | . . . . . . . Garrison Access . | . . . . . . . Data Cores Recovered . | . . . . . . . Used . | . . . . . . . Hacking Detections 1 | . . . 1 . . . Full Trace Events . | . . . . . . . Feedback Events . | . . . . . . . Feedback Blocked . | . . . . . . . Robot Schematics Acquired . | . . . . . . . Robots Built . | . . . . . . . Authchips . | . . . . . . . Time . | . . . . . . . Total Robot Build Rating . | . . . . . . . Part Schematics Acquired . | . . . . . . . Parts Built . | . . . . . . . Authchips . | . . . . . . . Time . | . . . . . . . Total Part Build Rating . | . . . . . . . Parts Repaired . | . . . . . . . Time . | . . . . . . . Parts Recycled . | . . . . . . . Recycled Matter . | . . . . . . . Retrieved Matter . | . . . . . . . Retrieved Components . | . . . . . . . Parts Scanalyzed . | . . . . . . . Part Schematics Acquired . | . . . . . . . Parts Damaged . | . . . . . . . Bothacking | -11 -10 -10 -9 -9 -9 -8 ------------ Run | Yrd Mat Min Mat Min Exi Min Used RIF Installer . | . . . . . . . Robots Hacked . | . . . . . . . Non-combat . | . . . . . . . Combat . | . . . . . . . Robot Hacks Applied . | . . . . . . . Relay Couplers Released . | . . . . . . . Fabnet Peak Effective % . | . . . . . . . Robots Rewired . | . . . . . . . Allies Hacked . | . . . . . . . Hacks Repelled . | . . . . . . . Allies | -11 -10 -10 -9 -9 -9 -8 -------- Run | Yrd Mat Min Mat Min Exi Min Total Allies 2 | . . . . 2 . . Largest Group 2 | . . . . 2 2 . Highest-Rated Group 54 | . . . . 54 54 . Highest-Rated Ally 31 | . . . . 31 31 . Total Orders . | . . . . . . . Ally Attacks 3 | . . . . 3 . . Total Damage 65 | . . . . 65 . . Kills . | . . . . . . . Allies Corrupted . | . . . . . . . Allies Melted . | . . . . . . . Intel | -11 -10 -10 -9 -9 -9 -8 ------- Run | Yrd Mat Min Mat Min Exi Min Robot Analysis Total . | . . . . . . . Derelict Logs Recovered 2 | . . . . 2 . . Drone Launches . | . . . . . . . Drone Recoveries . | . . . . . . . Exploration | -11 -10 -10 -9 -9 -9 -8 ------------- Run | Yrd Mat Min Mat Min Exi Min Turns Passed 1669 | 83 207 290 335 467 57 230 Spaces Moved 861 | 47 125 159 115 296 48 71 Core 9 | 2 . . 6 1 . . Treads 422 | 45 125 159 93 . . . Legs 414 | . . . . 295 48 71 Wheels . | . . . . . . . Hover 16 | . . . 16 . . . Flight . | . . . . . . . Fastest Speed 50 | 50 160 160 120 120 120 120 Average Speed 148 | 155 160 160 176 120 120 185 Slowest Speed 250 | 160 160 160 240 250 120 190 Overloaded Moves . | . . . . . . . Propulsion Burnouts . | . . . . . . . Robots Hopped . | . . . . . . . Cave-ins Triggered . | . . . . . . . Exploration Rate (%) 29 | 4 23 43 25 72 10 31 Regions Visited 6 Branch Regions 4 Pre-discovered Areas . | . . . . . . . Known Exits Taken 1 | . . . 1 . . . Unknown Exits Taken 5 | 1 1 1 . 1 1 . Scrap Searched 2 | . . 1 . 1 . . Spaces Dug . | . . . . . . . Terrain Destroyed 51 | . . . 51 . . . Melee . | . . . . . . . Projectile . | . . . . . . . AOE 51 | . . . 51 . . . Terrain Rammed . | . . . . . . . Walls Destroyed . | . . . . . . . Machines Disabled . | . . . . . . . Actions | -11 -10 -10 -9 -9 -9 -8 --------- Run | Yrd Mat Min Mat Min Exi Min Total 1047 | 55 128 173 169 358 47 117 Wait 19 | . . 1 1 13 . 4 Move 855 | 46 124 158 114 295 47 71 Hop . | . . . . . . . Pick Up 13 | 3 1 1 2 6 . . Fast Attach 21 | 5 1 1 5 7 . 2 Attach 11 | 1 . . 2 1 . 7 Detach 4 | . . . . 1 . 3 Swap 5 | . . . 1 3 . 1 Drop 5 | . . . . 4 . 1 Fire 114 | . 2 12 44 28 . 28 Melee . | . . . . . . . Ram . | . . . . . . . Kick . | . . . . . . . Crush . | . . . . . . . Escape Stasis . | . . . . . . . Rewire . | . . . . . . . Trap . | . . . . . . . Miscellaneous . | . . . . . . . Route ------- -11/Scrapyard -10/Materials -10/Mines -9/Materials -9/Mines (discovered 3 exits: [*Mat x2] / [*Exi]) -9/Exiles -8/Mines History --------- Turn | Location | Event 13 | -11/Scrapyard | Discovered new exit (range 16) 84 | -11/Scrapyard | Entered Materials 283 | -10/Materials | Discovered new exit (range 6) 291 | -10/Materials | Entered Mines 315 | -10/Mines | Build established: Mutant 356 | -10/Mines | Assembled infested the area 548 | -10/Mines | Discovered new exit (range 15) 581 | -10/Mines | Entered Materials 581 | -9/Materials | Evolved 2 slots: Utility x2 763 | -9/Materials | Discovered new exit (range 14) 812 | -9/Materials | Lost 4 parts (1n1u2w) 869 | -9/Materials | System corruption reached 10% 914 | -9/Materials | Identified exit to Mines 916 | -9/Materials | Entered Mines 952 | -9/Mines | Lost 3 parts (1n1u1w) 980 | -9/Mines | Learned 8 Materials zone layouts 1013 | -9/Mines | Found a damaged Exp. Sensor Array with a note attached 1015 | -9/Mines | Found Prototype Device 1100 | -9/Mines | Discovered new exit (range 5) 1145 | -9/Mines | Core integrity fell below 50% 1177 | -9/Mines | Discovered new exit (range 10) 1191 | -9/Mines | Lost 4 parts (1p1n2u) 1302 | -9/Mines | Learned Materials non-interactive machine intel 1308 | -9/Mines | Found DCF Scrap (13 items) 1341 | -9/Mines | Found a hidden stash of uninstalled traps 1373 | -9/Mines | Deemed a non-threat by the Exiles lab entrance 1373 | -9/Mines | Discovered new exit (range 5) 1383 | -9/Mines | Entered Exiles 1383 | -9/Exiles | Accompanied by 2 allies 1413 | -9/Exiles | Led the pair of lost Derelicts to a safe place 1413 | -9/Exiles | Met 8R-AWN 1424 | -9/Exiles | Discovered new exit (range 14) 1440 | -9/Exiles | Entered Mines 1497 | -8/Mines | Build established: Scavenger-Mutant 1648 | -8/Mines | Core integrity fell below 20% 1670 | -8/Mines | Destroyed by G-47 Trooper with Particle Gun Last Messages --------------- WK3WF|Q|X&JH7L,VI,2V<%EHD System corrupted: Heat flow error (+274). Dropped Core Shielding. R-06 Scavenger collects Core Shielding. System corrupted: Matter fused (-7). Lgt. Ion Engine destroyed. Aluminum Leg destroyed. System corrupted: Matter fused (-6). Overheating: System interference. Sensor Array temporarily disabled. Particle Gun temporarily disabled. Imp. Aluminum Leg destroyed. Particle Gun destroyed. Hvy. Laser destroyed. G-47 Trooper destroyed. Critical hit (Burn: +37). Hvy. EM Pulse Gun destroyed. Power failure, Imp. Ion Engine shutdown. System corrupted: Particle Gun failed to cycle. Critical hit (Burn: +37). Map ----- +----------------------------------------------------+ | | | | | | | ????????????????????????????????????????? | | ????????????????????????????????????????? | | ????????????????????????????????????????? | | ???????????????????????? ???????????????? | | ?????????????????????## ??????????????? | | ???????????????????? ??????????????? | | ??????????????????? ????????????????? | | #######????####### #??????????????????? | | #???## #???????????????????? | | " """ ##### #????????????????????? | | " """ #????????????????? ??? | | " """ ##### #####????????###????# #??? | | #??# #???????????# #???# #??? | | " """ #??# ###????????? ##?# ##?? | | " """ #??# #####????? ## ##? | | " """ #??# #???## #? | | #??# ##### g g #? | | #??# ## !% #?? | | #??## ## ## = #???? | | #######???##### ######## ## #????? | | ??????????????# #??????# ##????????? | | ??????????????# #??????# #?????????? | | ??????????????# ??????# @ #?????????? | | ?????????????? ??????## #?????????? | | ??##?????????? ???????# #?????????? | | ?## ##???????? ??????# t ##?????????? | | ?# ##??????? ??????## #??????????? | | ?# ##??????####????????# t#??????????? | | ??# #??????????????????? #??????????? | | ???# #??????????????????? #??????????? | | ??##[%##??????????????????? #??????????? | | ??# %#???????????????????? #??????????? | | ?## % #???????????????????? k#??????????? | | ## #????????????????????? ??????????? | | #????????????????????? ??????????? | | # #?????????????????????? ??????????? | | ## ##??????????????????????#??????????? | | ?#####??????????????????????????????????? | | ????????????????????????????????????????? | | ????????????????????????????????????????? | | ????????????????????????????????????????? | | ????????????????????????????????????????? | | ????????????????????????????????????????? | | ????????????????????????????????????????? | | ????????????????????????????????????????? | | ????????????????????????????????????????? | | ????????????????????????????????????????? | +----------------------------------------------------+ Best States ------------- Heat Dissipation 28 Energy Generation 14 Energy Capacity 265 Matter Stores 300 Matter Capacity 300 Sight Range 16 Robot Scan Range 14 Terrain Scan Density 10 Armor Coverage 225 Core Shielding 20 Evasion (%) 55 Recoil Reduction 2 Item Schematics ----------------- None Robot Schematics ------------------ None Fabricated ------------ Nothing Alien Tech Used ----------------- None Achievements -------------- None Challenges ------------ None Game ------ Seed CommPointyStatue Manual? 0 Play Time 00:11:46 Cumulative 212.3 hours Start 2024.08.17 @ 11:59:02 End 2024.08.17 @ 12:08:57 Sessions 1 Manual Loads 0 Difficulty Rogue Special Mode None Game No. 392 Rogue 390 Adventurer 2 Explorer 0 Win Type - Total 10 Types 8/0/0/2/0/0/0/0/0 Lore% 72 Gallery% 66 Achievement% 56 Wizard Run 0 Options --------- Layout 0 ASCII 0 Keyboard 1 Movement Numpad Keybinds 1 Fullscreen 2 Font 18/SmallcapsGlow Map View 76x50 Zoom Use 0% Tactical HUD 1 Map Filters NONE Filters NONE Steam 1 RUN: e35ccfdd-dfb6-46e3-b320-ba46fe9c4a72